bitfinex/quotes_BTCUSD_20250124
["timestamp","ask_amount","ask_price","bid_price","bid_amount"]
[1737734258699,0.0004955,105900.0,105890.0,0.141656]
[1737734259344,0.1421385,105900.0,105890.0,0.141656]
[1737734261342,0.0004955,105900.0,105890.0,0.141656]
[1737734261586,0.1421385,105900.0,105890.0,0.141656]
[1737734261783,0.1421385,105900.0,105880.0,0.34012724]
[1737734262010,0.141656,105890.0,105880.0,0.18888]
[1737734262221,0.5198825,105900.0,105880.0,0.519434]
[1737734262454,2.0198825,105900.0,105880.0,0.519434]
[1737734262686,2.2087525,105900.0,105880.0,0.330542]
[1737734262941,0.5671015,105900.0,105880.0,0.330542]
[1737734263147,0.141656,105890.0,105870.0,0.460396]
[1737734263356,0.141656,105890.0,105870.0,0.330572]
[1737734263357,0.330539,105890.0,105870.0,0.330572]
[1737734263568,0.330539,105890.0,105870.0,0.519474]
[1737734263787,0.330538,105890.0,105870.0,0.519474]
[1737734264199,0.330538,105890.0,105870.0,0.708376]
[1737734264402,0.330538,105890.0,105870.0,0.519474]
[1737734264617,0.330538,105890.0,105870.0,0.519473]
[1737734264837,0.330538,105890.0,105870.0,0.708374]
[1737734265053,0.5668875,105900.0,105880.0,0.33056]
[1737734265278,0.0004955,105900.0,105890.0,0.141656]
[1737734265900,0.1421385,105900.0,105890.0,0.141656]
[1737734267341,0.0004955,105900.0,105890.0,0.141656]
[1737734268154,0.1421385,105900.0,105890.0,0.141656]
[1737734268572,0.3309985,105900.0,105880.0,0.61679029]
[1737734268981,0.0004955,105900.0,105890.0,0.141656]
[1737734269364,0.1421385,105900.0,105890.0,0.141656]
[1737734270112,0.0004955,105900.0,105890.0,0.141656]
[1737734271061,0.0004955,105900.0,105890.0,0.164656]
[1737734271263,0.0004955,105900.0,105890.0,0.26294762]
[1737734271461,0.0004955,105900.0,105890.0,0.34520329]
[1737734280299,0.0004955,105900.0,105890.0,0.26200329]
[1737734281589,0.0004955,105900.0,105890.0,0.41684402]
[1737734281806,0.0004955,105900.0,105890.0,0.56684402]
[1737734285687,0.0004955,105900.0,105890.0,0.37024402]
[1737734286052,0.0004955,105900.0,105890.0,0.26824402]
[1737734286937,0.0004955,105900.0,105890.0,0.29124402]
[1737734287958,0.0004955,105900.0,105890.0,0.19389673]
[1737734288111,0.0004955,105900.0,105890.0,0.17089673]
[1737734288112,0.1421385,105900.0,105890.0,0.17089673]
[1737734288319,0.2234385,105900.0,105890.0,0.141656]
[1737734288521,0.0817955,105900.0,105890.0,0.141656]
[1737734288924,0.0004955,105900.0,105890.0,0.164656]
[1737734289130,0.0004955,105900.0,105890.0,0.19389861]
[1737734291551,0.0004955,105900.0,105890.0,0.2912459]
[1737734294760,0.0004955,105900.0,105890.0,0.5690459]
[1737734295438,0.0004955,105900.0,105890.0,0.58764317]
[1737734299917,0.0004955,105900.0,105890.0,0.17089861]
[1737734300131,0.0004955,105900.0,105890.0,0.26919016]
[1737734300334,0.0004955,105900.0,105890.0,0.4182459]
[1737734300462,0.0004955,105900.0,105890.0,0.4412459]
[1737734304756,0.0004955,105900.0,105890.0,0.2912459]
[1737734306609,0.0004955,105900.0,105890.0,0.4412459]
[1737734308871,0.0004955,105900.0,105890.0,0.2912459]
[1737734312406,0.0004955,105900.0,105890.0,0.141656]
[1737734313291,0.0004955,105900.0,105890.0,0.26200329]
[1737734313964,0.0004955,105900.0,105890.0,0.29123576]
[1737734315149,0.0004955,105900.0,105890.0,0.29987737]
[1737734317232,0.0004955,105900.0,105890.0,0.38047737]
[1737734317653,0.0004955,105900.0,105890.0,0.37183576]
[1737734318295,0.0004955,105900.0,105890.0,0.52183576]
[1737734320351,0.0004955,105900.0,105890.0,0.53048901]
[1737734321150,0.0004955,105900.0,105890.0,0.5495624]
[1737734326758,0.0004955,105900.0,105890.0,0.54090915]
[1737734326891,0.0004955,105900.0,105890.0,0.26823576]
[1737734327290,0.0004955,105900.0,105890.0,0.29123576]
[1737734327497,0.0004955,105900.0,105890.0,0.51953576]
[1737734332148,0.0004955,105900.0,105890.0,0.29123576]
[1737734333604,0.0004955,105900.0,105890.0,0.37521464]
[1737734334443,0.0004955,105900.0,105890.0,0.52521464]
[1737734335143,0.0004955,105900.0,105890.0,0.66241464]
[1737734335568,0.0004955,105900.0,105890.0,0.65241464]
[1737734336185,5.68e-06,105920.0,105900.0,0.173]
[1737734336389,0.00049664,105920.0,105910.0,0.26197629]
[1737734336645,0.00049664,105920.0,105910.0,0.29120876]
[1737734339373,0.00049664,105920.0,105910.0,0.58130876]
[1737734339646,0.00035779,105930.0,105920.0,0.397616]
[1737734339902,0.00035779,105930.0,105920.0,0.49496329]
[1737734340167,0.00035779,105930.0,105920.0,0.52419576]
[1737734340444,0.00035779,105930.0,105920.0,0.44119576]
[1737734340645,0.29044832,105950.0,105920.0,0.26819576]
[1737734340860,0.0001472,105940.0,105930.0,0.188796]
[1737734341294,0.1417362,105940.0,105930.0,0.188796]
[1737734342453,0.3305242,105940.0,105930.0,0.141602]
[1737734342855,0.1417362,105940.0,105930.0,0.141602]
[1737734343101,0.3305242,105940.0,105920.0,0.519238]
[1737734343613,0.4066242,105940.0,105930.0,0.141602]
[1737734343824,0.5954182,105940.0,105920.0,0.330425]
[1737734344008,0.5954182,105940.0,105920.0,0.519246]
[1737734344378,0.0762472,105940.0,105930.0,0.141602]
[1737734346903,0.2178362,105940.0,105920.0,0.519246]
[1737734347107,0.2178362,105940.0,105930.0,0.141602]
[1737734347474,0.4066242,105940.0,105920.0,0.519246]
[1737734347643,0.4066242,105940.0,105930.0,0.141602]
[1737734347877,0.4066242,105940.0,105920.0,0.519235]
[1737734348184,0.2178362,105940.0,105930.0,0.141602]
[1737734348541,0.4066242,105940.0,105920.0,0.519235]
[1737734348747,0.2178362,105940.0,105930.0,0.141602]
[1737734350444,0.4066242,105940.0,105920.0,0.519235]
[1737734350787,0.2178362,105940.0,105930.0,0.141602]
[1737734350993,0.2178362,105940.0,105930.0,0.136602]
[1737734353200,0.2178362,105940.0,105930.0,0.1367437]
[1737734354345,0.2178362,105940.0,105930.0,0.0001417]
[1737734359458,0.46518349,105940.0,105930.0,0.0001417]
[1737734359659,0.51218349,105940.0,105930.0,0.0001417]
[1737734361962,0.141602,105930.0,105920.0,0.14156644]
[1737734362171,0.88978649,105940.0,105920.0,0.33038744]
[1737734362381,0.141602,105930.0,105920.0,0.188821]
[1737734362589,0.141602,105930.0,105910.0,0.519287]
[1737734362794,0.330408,105930.0,105910.0,0.519287]
[1737734362994,0.330408,105930.0,105910.0,0.519285]
[1737734363203,0.330408,105930.0,105910.0,0.708117]
[1737734363409,0.519221,105930.0,105910.0,0.330455]
[1737734363617,0.141616,105920.0,105900.0,0.57579047]
[1737734363824,0.519232,105930.0,105910.0,0.330459]
[1737734364033,0.141616,105920.0,105910.0,0.188835]
[1737734364245,0.708051,105930.0,105910.0,0.33046]
[1737734364445,0.708046,105930.0,105910.0,0.33046]
[1737734364861,0.330438,105920.0,105910.0,0.141629]
[1737734365067,0.330419,105930.0,105910.0,0.330466]
[1737734365269,0.519234,105930.0,105910.0,0.330466]
[1737734365679,0.141616,105920.0,105910.0,0.141629]
[1737734366155,0.141616,105920.0,105910.0,0.1417708]
[1737734367372,0.708055,105930.0,105910.0,0.3306078]
[1737734367569,0.141616,105920.0,105910.0,0.1417708]
[1737734368636,0.519236,105930.0,105910.0,0.3306068]
[1737734368955,0.519236,105930.0,105910.0,0.5194458]
[1737734369383,0.519231,105930.0,105910.0,0.7082778]
[1737734369579,0.519231,105930.0,105910.0,0.5194388]
[1737734369983,0.519231,105930.0,105910.0,0.3306028]
[1737734370197,0.519231,105930.0,105910.0,0.5194318]
[1737734370832,0.708046,105930.0,105910.0,0.3305998]
[1737734371044,0.519231,105930.0,105910.0,0.3305998]
[1737734371825,0.708045,105930.0,105910.0,0.3305998]
[1737734371964,0.519231,105930.0,105910.0,0.3305998]
[1737734373029,0.519231,105930.0,105910.0,0.0001418]
[1737734373030,0.32206329,105920.0,105910.0,0.0001418]
[1737734373203,0.36926329,105920.0,105910.0,0.0001418]
[1737734376040,0.51926329,105920.0,105910.0,0.0001418]
[1737734376224,0.61661058,105920.0,105910.0,8e-07]
[1737734376435,0.415856,105890.0,105880.0,0.08397888]
[1737734376644,0.52320329,105890.0,105880.0,0.08397888]
[1737734376860,0.55264035,105890.0,105880.0,0.08397888]
[1737734377062,0.51320329,105890.0,105880.0,0.02731188]
[1737734377651,0.51320329,105890.0,105880.0,0.02780284]
[1737734378419,0.53320329,105890.0,105880.0,0.02780284]
[1737734378624,0.51320329,105890.0,105880.0,0.02780284]
[1737734379027,0.51320329,105890.0,105880.0,0.00891384]
[1737734379229,0.51320329,105890.0,105880.0,8.4e-07]
[1737734379953,0.54178559,105890.0,105880.0,8.4e-07]
[1737734381555,0.57178559,105890.0,105880.0,8.4e-07]
[1737734381750,0.39178559,105890.0,105880.0,8.4e-07]
[1737734381997,0.41178559,105890.0,105880.0,8.4e-07]
[1737734382455,0.64879579,105890.0,105880.0,8.4e-07]
[1737734382658,0.63879579,105890.0,105880.0,8.4e-07]
[1737734382871,0.61879579,105890.0,105880.0,8.4e-07]
[1737734384243,0.01,105880.0,105860.0,0.0001418]
[1737734384476,0.51383029,105870.0,105860.0,0.00028909]
[1737734384679,0.52383029,105870.0,105860.0,0.00028909]
[1737734384890,0.53383029,105870.0,105860.0,0.00028909]
[1737734385098,0.51383029,105870.0,105860.0,0.00028909]
[1737734385968,0.53383029,105870.0,105860.0,0.00028909]
[1737734386412,0.51383029,105870.0,105860.0,0.00028909]
[1737734386619,0.38903029,105870.0,105860.0,0.00028909]
[1737734386777,0.40903029,105870.0,105860.0,0.00028909]
[1737734386982,0.38903029,105870.0,105860.0,0.00028909]
[1737734387185,0.40903029,105870.0,105860.0,0.00028909]
[1737734387425,0.38903029,105870.0,105860.0,0.00028909]
[1737734387994,0.40903029,105870.0,105860.0,0.00028909]
[1737734388603,0.38903029,105870.0,105860.0,0.00028909]
[1737734388840,0.40903029,105870.0,105860.0,0.00028909]
[1737734389036,0.48269835,105870.0,105860.0,0.00028909]
[1737734389243,0.46269835,105870.0,105860.0,0.00028909]
[1737734389451,0.42683129,105870.0,105860.0,0.00028909]
[1737734390486,0.329484,105870.0,105860.0,0.00028909]
[1737734390663,0.291683,105870.0,105860.0,0.00028909]
[1737734390838,0.141683,105870.0,105860.0,0.00028909]
[1737734391186,0.23903029,105870.0,105860.0,0.00028909]
[1737734394145,0.141683,105870.0,105860.0,0.07658909]
[1737734404250,0.141683,105870.0,105860.0,0.07650161]
[1737734405511,0.000298,105880.0,105870.0,0.141683]
[1737734405718,0.09764529,105880.0,105870.0,0.267283]
[1737734405867,0.23931429,105880.0,105870.0,0.1256]
[1737734406075,0.000298,105880.0,105870.0,0.267283]
[1737734406280,0.000298,105880.0,105870.0,0.26719554]
[1737734407268,0.000298,105880.0,105870.0,0.2964176]
[1737734407472,0.000298,105880.0,105870.0,0.26719554]
[1737734407678,0.000298,105880.0,105870.0,0.29640373]
[1737734408308,0.000298,105880.0,105870.0,0.26719554]
[1737734409508,0.000298,105880.0,105870.0,0.38754283]
[1737734409668,0.000298,105880.0,105870.0,0.41672805]
[1737734412425,0.000298,105880.0,105870.0,0.56672805]
[1737734413869,0.000298,105880.0,105870.0,0.53754283]
[1737734418152,0.000298,105880.0,105870.0,0.56663716]
[1737734419805,1e-06,105880.0,105870.0,0.57663716]
[1737734420075,1e-06,105880.0,105870.0,0.56663716]
[1737734420444,1e-06,105880.0,105870.0,0.53754283]
[1737734421766,0.31500479,105930.0,105920.0,0.141616]
[1737734421767,0.00029779,105930.0,105920.0,0.141616]
[1737734421984,0.33072579,105930.0,105910.0,0.330461]
[1737734422198,0.330447,105920.0,105900.0,0.519328]
[1737734422415,0.330472,105910.0,105890.0,0.600177]
[1737734422686,0.61663029,105920.0,105900.0,0.330492]
[1737734423160,0.61712125,105920.0,105900.0,0.330491]
[1737734424222,0.33256225,105920.0,105890.0,0.188864]
[1737734424433,0.330502,105900.0,105880.0,0.330539]
[1737734424648,0.330502,105900.0,105880.0,0.141657]
[1737734424649,0.61672529,105900.0,105880.0,0.141657]
[1737734424860,0.61672529,105900.0,105880.0,0.330549]
[1737734425097,0.42785929,105900.0,105880.0,0.519433]
[1737734425306,0.330538,105890.0,105870.0,0.408971]
[1737734425514,0.330544,105890.0,105870.0,0.330583]
[1737734425908,0.330544,105890.0,105870.0,0.519485]
[1737734426130,0.519427,105890.0,105870.0,0.519485]
[1737734426338,0.330544,105890.0,105870.0,0.519485]
[1737734426541,0.519427,105890.0,105870.0,0.519485]
[1737734426754,0.330544,105890.0,105870.0,0.519485]
[1737734426956,0.330544,105890.0,105870.0,0.5196269]
[1737734426957,0.519427,105890.0,105870.0,0.5196269]
[1737734427447,0.519427,105890.0,105870.0,0.0001419]
[1737734427448,0.141669,105880.0,105870.0,0.0001419]
[1737734427671,0.141669,105880.0,105870.0,0.1418249]
[1737734427890,0.69647429,105890.0,105870.0,0.3307309]
[1737734428274,0.88536129,105890.0,105870.0,0.188906]
[1737734428493,0.599127,105890.0,105870.0,0.519491]
[1737734428637,0.599127,105890.0,105870.0,0.51963029]
[1737734428847,0.599127,105890.0,105880.0,0.141669]
[1737734428848,0.141668,105890.0,105880.0,0.141669]
[1737734429431,0.57468105,105900.0,105880.0,0.519449]
[1737734429676,0.141656,105890.0,105880.0,0.330557]
[1737734430032,0.53037534,105900.0,105880.0,0.330557]
[1737734430272,0.67203034,105900.0,105880.0,0.330557]
[1737734430714,0.38581505,105900.0,105890.0,0.141656]
[1737734430913,0.38581505,105900.0,105880.0,0.519449]
[1737734431092,0.38581505,105900.0,105880.0,0.708332]
[1737734431288,0.38581505,105900.0,105890.0,0.141656]
[1737734431289,0.141953,105900.0,105890.0,0.141656]
[1737734431731,0.330815,105900.0,105880.0,0.787023]
[1737734432013,0.330815,105900.0,105890.0,0.141656]
[1737734432766,0.141953,105900.0,105890.0,0.141656]
[1737734433695,0.000298,105900.0,105890.0,0.141656]
[1737734435548,0.000298,105900.0,105890.0,0.34344757]
[1737734435714,0.000298,105900.0,105890.0,0.49250329]
[1737734438230,0.000298,105900.0,105890.0,0.53780329]
[1737734438434,0.000298,105900.0,105890.0,0.56683473]
[1737734443366,0.000298,105900.0,105890.0,0.53780329]
[1737734444503,0.000298,105900.0,105890.0,0.56687063]
[1737734451207,0.000298,105900.0,105890.0,0.53780329]
[1737734451553,0.000298,105900.0,105890.0,0.51480329]
[1737734452119,0.000298,105900.0,105890.0,0.53780329]
[1737734452458,0.000298,105900.0,105890.0,0.34250329]
[1737734453353,0.000298,105900.0,105890.0,0.31950329]
[1737734453561,0.000298,105900.0,105890.0,0.141656]
[1737734454333,0.000298,105900.0,105890.0,0.23994758]
[1737734454549,0.000298,105900.0,105890.0,0.23900329]
[1737734454717,0.000298,105900.0,105890.0,0.09734729]
[1737734454918,0.000298,105900.0,105880.0,0.61082801]
[1737734455115,0.000298,105900.0,105880.0,0.7081753]
[1737734455564,0.000298,105900.0,105880.0,0.8970583]
[1737734455823,0.000298,105900.0,105880.0,0.7081753]
[1737734456022,0.000298,105900.0,105890.0,0.141656]
[1737734456174,0.000298,105900.0,105890.0,0.14260032]
[1737734456383,0.000298,105900.0,105890.0,0.141656]
[1737734457675,0.141942,105900.0,105880.0,0.7081793]
[1737734457891,0.141669,105890.0,105870.0,0.00028919]
[1737734458098,0.141669,105880.0,105870.0,0.00028919]
[1737734461779,0.31971629,105880.0,105870.0,0.00028919]
[1737734462349,0.222369,105880.0,105870.0,0.00028919]
[1737734464949,0.141669,105880.0,105870.0,0.00028919]
[1737734465606,0.65418433,105890.0,105870.0,0.14197119]
[1737734465833,0.330555,105890.0,105870.0,0.33088019]
[1737734466016,0.141662,105890.0,105870.0,0.42822748]
[1737734466213,0.141662,105890.0,105880.0,0.141669]
[1737734466448,0.461911,105900.0,105880.0,0.330561]
[1737734466449,0.650778,105900.0,105880.0,0.330561]
[1737734466652,0.461911,105900.0,105880.0,0.519453]
[1737734467061,0.461911,105900.0,105890.0,0.141656]
[1737734467062,0.000298,105900.0,105890.0,0.141656]
[1737734467687,0.000298,105900.0,105890.0,0.14260031]
[1737734469085,0.000298,105900.0,105890.0,0.13710031]
[1737734470750,0.000298,105900.0,105890.0,0.2574476]
[1737734470950,0.000298,105900.0,105890.0,0.25650329]
[1737734471588,0.000298,105900.0,105890.0,0.53350329]
[1737734477928,0.000298,105900.0,105890.0,0.57245028]
[1737734479473,0.000298,105900.0,105890.0,0.56245028]
[1737734479797,0.000298,105900.0,105890.0,0.53350329]
[1737734482298,0.00029779,105930.0,105920.0,0.141616]
[1737734482532,0.00029779,105930.0,105920.0,0.41290716]
[1737734482762,0.00029779,105930.0,105920.0,0.49166329]
[1737734483585,0.00078875,105930.0,105920.0,0.49166329]
[1737734486859,0.00078875,105930.0,105920.0,0.53956329]
[1737734487073,0.00078875,105930.0,105920.0,0.55813342]
[1737734489378,0.00078875,105930.0,105920.0,0.56813342]
[1737734489796,0.00029758,105950.0,105940.0,0.271189]
[1737734490004,0.00029758,105950.0,105940.0,0.57153629]
[1737734490005,8.1e-07,105950.0,105940.0,0.57153629]
[1737734490422,8.1e-07,105950.0,105940.0,0.60035976]
[1737734490860,8.1e-07,105950.0,105940.0,0.63548225]
[1737734492292,8.1e-07,105950.0,105940.0,0.60665878]
[1737734492507,8.1e-07,105950.0,105940.0,0.63543318]
[1737734492972,8.1e-07,105950.0,105940.0,0.62543318]
[1737734493186,8.1e-07,105950.0,105940.0,0.60665878]
[1737734493394,8.1e-07,105950.0,105940.0,0.62833338]
[1737734493955,8.1e-07,105950.0,105940.0,0.51853629]
[1737734494778,8.1e-07,105950.0,105940.0,0.54153629]
[1737734495142,8.1e-07,105950.0,105940.0,0.58054575]
[1737734495345,8.1e-07,105950.0,105940.0,0.59918075]
[1737734495723,8.1e-07,105950.0,105940.0,0.57981549]
[1737734495939,8.1e-07,105950.0,105940.0,0.60882495]
[1737734496995,8.1e-07,105950.0,105940.0,0.63753018]
[1737734497802,0.0002986,105950.0,105940.0,0.63753018]
[1737734498006,0.0002986,105950.0,105940.0,0.60882495]
[1737734498420,0.0002986,105950.0,105940.0,0.63753018]
[1737734499119,0.0002986,105950.0,105940.0,0.6662944]
[1737734499733,6e-07,105950.0,105940.0,0.6662944]
[1737734500142,6e-07,105950.0,105940.0,1.10952917]
[1737734500351,6e-07,105950.0,105940.0,1.1382344]
[1737734501185,6e-07,105950.0,105940.0,1.10952917]
[1737734501613,6e-07,105950.0,105940.0,1.09952917]
[1737734501817,6e-07,105950.0,105940.0,0.73915549]
[1737734502865,6e-07,105950.0,105940.0,0.76215549]
[1737734502997,6e-07,105950.0,105940.0,0.73915549]
[1737734503408,6e-07,105950.0,105940.0,0.72052049]
[1737734503606,6e-07,105950.0,105940.0,0.87052049]
[1737734504016,6e-07,105950.0,105940.0,0.89352049]
[1737734506622,6e-07,105950.0,105940.0,0.97132049]
[1737734506827,6e-07,105950.0,105940.0,1.00017616]
[1737734507081,6e-07,105950.0,105940.0,0.97132049]
[1737734507282,6e-07,105950.0,105940.0,1.00018304]
[1737734507618,6e-07,105950.0,105940.0,0.97132049]
[1737734508366,6e-07,105950.0,105940.0,0.89352049]
[1737734510774,6e-07,105950.0,105940.0,0.9224135]
[1737734511200,6e-07,105950.0,105940.0,0.89352049]
[1737734512120,6e-07,105950.0,105940.0,0.92244277]
[1737734518122,6e-07,105950.0,105940.0,0.94161014]
[1737734519494,6e-07,105950.0,105940.0,0.60785377]
[1737734519703,6e-07,105950.0,105940.0,0.71087629]
[1737734520708,6e-07,105950.0,105940.0,0.73387629]
[1737734520911,6e-07,105950.0,105940.0,0.91288237]
[1737734521489,6e-07,105950.0,105940.0,0.91302417]
[1737734521958,6e-07,105950.0,105940.0,0.98982417]
[1737734523974,6e-07,105950.0,105940.0,0.91302417]
[1737734524304,6e-07,105950.0,105940.0,0.86101809]
[1737734524859,6e-07,105950.0,105940.0,0.88401809]
[1737734525906,6e-07,105950.0,105940.0,0.91304988]
[1737734528403,6e-07,105950.0,105940.0,1.04464988]
[1737734528606,0.0159874,105960.0,105950.0,0.396776]
[1737734528607,0.015948,105960.0,105950.0,0.396776]
[1737734528814,0.015948,105960.0,105950.0,0.52315508]
[1737734529508,0.04029821,105980.0,105960.0,0.164562]
[1737734529719,0.000298,106010.0,105990.0,0.141522]
[1737734529930,0.000298,106010.0,105990.0,0.91058418]
[1737734530142,1e-06,106010.0,106000.0,0.343491]
[1737734530373,0.00014823,106010.0,106000.0,0.51908808]
[1737734530586,0.00014823,106010.0,106000.0,0.26185629]
[1737734531266,0.00014823,106010.0,106000.0,0.23885629]
[1737734531478,0.00014823,106010.0,106000.0,0.141509]
[1737734531683,0.00014823,106010.0,106000.0,0.2397996]
[1737734531891,0.00014823,106010.0,106000.0,0.26185629]
[1737734532525,0.00014823,106010.0,106000.0,0.41185629]
[1737734533167,0.00014823,106010.0,106000.0,0.4211964]
[1737734533503,0.00014823,106010.0,106000.0,0.45012131]
[1737734534071,0.00014823,106010.0,106000.0,0.4211964]
[1737734534944,2.3e-07,106010.0,106000.0,0.55526394]
[1737734535155,2.3e-07,106010.0,106000.0,0.60256394]
[1737734535365,0.000298,106030.0,106010.0,0.01]
[1737734535570,0.000298,106030.0,106020.0,0.23977207]
[1737734535786,0.000298,106030.0,106020.0,0.26182929]
[1737734536815,0.000298,106040.0,106030.0,0.023]
[1737734537022,0.000298,106040.0,106030.0,0.26275898]
[1737734537229,0.000298,106040.0,106030.0,0.26181629]
[1737734538063,0.000298,106040.0,106030.0,0.48071629]
[1737734538474,0.0002997,106050.0,106040.0,0.314456]
[1737734538693,0.00079018,106050.0,106040.0,0.41180329]
[1737734540051,0.00079018,106050.0,106040.0,0.38880329]
[1737734540643,0.00079018,106050.0,106040.0,0.41180329]
[1737734541040,0.00079018,106050.0,106040.0,0.42110949]
[1737734541631,1.8e-07,106050.0,106040.0,1.03542949]
[1737734541839,1.8e-07,106050.0,106040.0,1.04542949]
[1737734542040,0.0159874,106070.0,106060.0,0.173]
[1737734542244,0.00014751,106070.0,106060.0,0.98424872]
[1737734542424,6e-05,106080.0,106070.0,0.291416]
[1737734542669,6e-05,106080.0,106070.0,0.38876329]
[1737734543675,6e-05,106080.0,106070.0,0.41176329]
[1737734544867,6e-05,106080.0,106060.0,0.612859]
[1737734545237,0.141416,106070.0,106060.0,0.612857]
[1737734545438,0.330024,106080.0,106060.0,0.612859]
[1737734545668,0.141416,106070.0,106060.0,0.47143]
[1737734545871,0.219416,106070.0,106060.0,0.47143]
[1737734546076,0.407984,106070.0,106040.0,0.47033786]
[1737734546284,0.375909,106060.0,106050.0,0.00014711]
[1737734546505,0.453909,106060.0,106050.0,0.00014711]
[1737734546915,0.603909,106060.0,106050.0,0.00014711]
[1737734547450,0.1239,106060.0,106050.0,0.14158911]
[1737734548296,0.02789743,106070.0,106060.0,0.164429]
[1737734548595,0.02789743,106070.0,106060.0,0.26177629]
[1737734549377,0.02789743,106070.0,106060.0,0.141429]
[1737734549786,0.40909758,106080.0,106060.0,0.518562]
[1737734550009,0.07915758,106080.0,106070.0,0.141416]
[1737734550214,0.07915758,106080.0,106070.0,0.23876329]
[1737734551938,0.26769558,106080.0,106060.0,0.329989]
[1737734552145,0.64479558,106080.0,106060.0,0.141428]
[1737734552346,0.329972,106070.0,106050.0,0.52816533]
[1737734552545,0.141417,106070.0,106060.0,0.141429]
[1737734552753,0.01743648,106070.0,106060.0,0.141429]
[1737734552953,0.34741048,106070.0,106050.0,0.62551262]
[1737734553183,0.34741048,106070.0,106050.0,0.62551162]
[1737734553387,0.34741048,106070.0,106060.0,0.141429]
[1737734553807,0.34741048,106070.0,106050.0,0.6160914]
[1737734553808,0.518548,106070.0,106050.0,0.6160914]
[1737734554012,0.188558,106070.0,106050.0,0.51873311]
[1737734554245,0.23234319,106080.0,106060.0,0.47447429]
[1737734554464,0.141416,106070.0,106060.0,0.141425]
[1737734554629,0.141429,106060.0,106050.0,0.18872111]
[1737734554850,0.270129,106060.0,106050.0,0.00014711]
[1737734556734,0.270129,106060.0,106050.0,0.14158911]
[1737734557150,0.1287,106060.0,106050.0,0.14158911]
[1737734557790,0.02789743,106070.0,106060.0,0.141429]
[1737734558669,0.02789743,106070.0,106060.0,0.26271909]
[1737734558963,0.02789743,106070.0,106060.0,0.26177629]
[1737734559477,0.07815501,106080.0,106070.0,0.141416]
[1737734560014,0.21955701,106080.0,106060.0,0.61590329]
[1737734560331,0.40810301,106080.0,106060.0,0.518553]
[1737734560537,0.0736012,106070.0,106060.0,0.141429]
[1737734561717,0.0736012,106070.0,106060.0,0.23877629]
[1737734562424,0.05025758,106080.0,106070.0,0.141416]
[1737734563857,0.05025758,106080.0,106060.0,0.61590029]
[1737734563858,0.38020158,106080.0,106060.0,0.61590029]
[1737734564068,0.19166458,106080.0,106070.0,0.141416]
[1737734564268,0.05025758,106080.0,106070.0,0.141416]
[1737734564671,0.19165958,106080.0,106070.0,0.141416]
[1737734564869,0.05025758,106080.0,106070.0,0.141416]
[1737734565147,0.00035758,106080.0,106070.0,0.141416]
[1737734565882,0.00035758,106080.0,106060.0,0.61590029]
[1737734566082,0.18889458,106080.0,106060.0,0.17043875]
[1737734566479,0.04580899,106070.0,106060.0,0.17043575]
[1737734566687,0.18722499,106070.0,106060.0,0.141426]
[1737734566884,0.18722499,106070.0,106060.0,0.141429]
[1737734567295,0.04580899,106070.0,106060.0,0.141429]
[1737734567440,0.141416,106070.0,106060.0,0.141429]
[1737734567947,0.60165358,106080.0,106060.0,0.141429]
[1737734568189,0.60165358,106080.0,106060.0,0.330001]
[1737734568637,0.141418,106070.0,106050.0,0.38669221]
[1737734568829,0.141418,106070.0,106060.0,0.141429]
[1737734569037,0.141418,106070.0,106050.0,0.6726175]
[1737734569181,0.329972,106070.0,106050.0,0.46593404]
[1737734569384,0.188554,106070.0,106050.0,0.17076845]
[1737734569586,0.220529,106060.0,106050.0,0.02933545]
[1737734569828,0.29454547,106060.0,106050.0,0.00028891]
[1737734570551,0.30630782,106060.0,106050.0,0.00028891]
[1737734571522,0.23229135,106060.0,106050.0,0.00028891]
[1737734572173,0.220529,106060.0,106050.0,0.00028891]
[1737734573248,0.220529,106060.0,106050.0,0.14173091]
[1737734573425,0.329978,106070.0,106050.0,0.33030991]
[1737734573627,0.57488583,106080.0,106060.0,0.329993]
[1737734573628,0.51775083,106080.0,106060.0,0.329993]
[1737734573826,0.51775083,106080.0,106060.0,0.518556]
[1737734574026,0.51775083,106080.0,106070.0,0.141416]
[1737734574027,0.00035758,106080.0,106070.0,0.141416]
[1737734576154,0.00035758,106080.0,106070.0,0.1704571]
[1737734576360,0.00035758,106080.0,106070.0,0.141416]
[1737734576590,0.00035758,106080.0,106070.0,0.23970598]
[1737734576797,0.00035758,106080.0,106070.0,0.26780068]
[1737734578609,0.00035758,106080.0,106070.0,0.29080068]
[1737734581272,0.00035758,106080.0,106070.0,0.26780068]
[1737734581474,0.33029758,106080.0,106060.0,0.518552]
[1737734581695,0.188567,106070.0,106050.0,0.00028891]
[1737734581896,0.601362,106070.0,106050.0,0.00028891]
[1737734582127,0.0828,106070.0,106060.0,0.141429]
[1737734582336,0.0828,106070.0,106050.0,0.6162322]
[1737734582337,0.412771,106070.0,106050.0,0.6162322]
[1737734582512,0.412771,106070.0,106050.0,0.33030391]
[1737734582742,0.141429,106060.0,106050.0,0.14172591]
[1737734582946,0.601343,106070.0,106050.0,0.33031291]
[1737734583154,0.141429,106060.0,106050.0,0.00028891]
[1737734583364,0.1484701,106060.0,106050.0,0.00028891]
[1737734584218,0.39581739,106060.0,106050.0,0.00028891]
[1737734584424,0.44151739,106060.0,106050.0,0.00028891]
[1737734584630,0.43447629,106060.0,106050.0,0.00028891]
[1737734584835,0.518652,106050.0,106030.0,0.330092]
[1737734585192,0.141456,106040.0,106020.0,0.377256]
[1737734585359,0.330064,106040.0,106020.0,0.66323729]
[1737734585558,0.330064,106040.0,106030.0,0.22519251]
[1737734585764,0.330064,106040.0,106030.0,0.08372351]
[1737734587269,0.35821886,106040.0,106030.0,0.08372351]
[1737734587523,0.69396615,106040.0,106030.0,0.08372351]
[1737734587725,0.73286615,106040.0,106030.0,0.0721062]
[1737734587867,0.73286615,106040.0,106000.0,0.0001417]
[1737734587868,0.291496,106010.0,106000.0,0.0001417]
[1737734588110,1.96774329,106010.0,106000.0,0.0001417]
[1737734588466,1.96774329,106010.0,105960.0,0.0001417]
[1737734588467,0.377449,105980.0,105960.0,0.0001417]
[1737734588687,0.518996,105980.0,105960.0,0.3304497]
[1737734588903,0.330271,105980.0,105960.0,0.5191907]
[1737734589325,0.141547,105980.0,105970.0,0.141549]
[1737734589716,0.33494243,105990.0,105980.0,0.141536]
[1737734589923,0.00471443,105990.0,105980.0,0.141536]
[1737734590357,0.518904,106000.0,105980.0,0.141536]
[1737734590563,0.518904,106000.0,105980.0,0.330247]
[1737734590775,0.141522,105990.0,105970.0,0.519]